fUSD/lending_fUSD_20250905
["ID","MTS","AMOUNT","RATE_DAILY","PERIOD"]
[383646633,1757062243359,-199.011095,0.00025444,2]
[383646634,1757062243370,-961.38,0.00025444,2]
[383646635,1757062243380,-578.5,0.00025444,2]
[383646636,1757062243390,-442.17528818,0.00025444,2]
[383646637,1757062243401,-400.0,0.00025444,2]
[383646638,1757062243411,-400.0,0.00025444,2]
[383646639,1757062243421,-463.68661312,0.00025444,2]
[383646640,1757062243432,-400.0,0.00025444,2]
[383646641,1757062243442,-400.0,0.00025444,2]
[383646642,1757062243452,-400.0,0.00025444,2]
[383646643,1757062243463,-400.0,0.00025444,2]
[383646644,1757062243474,-400.0,0.00025444,2]
[383646645,1757062243483,-400.0,0.00025444,2]
[383646647,1757062243493,-400.0,0.00025444,2]
[383646649,1757062243502,-400.0,0.00025444,2]
[383646650,1757062243512,-461.76841821,0.00025444,2]
[383646651,1757062243522,-442.77,0.00025444,2]
[383646652,1757062243532,-400.0,0.00025444,2]
[383646653,1757062243542,-361.98861788,0.00025444,2]
[383646654,1757062243551,-400.0,0.00025444,2]
[383646655,1757062243561,-400.0,0.00025444,2]
[383646656,1757062243571,-2383.33,0.00025444,2]
[383646657,1757062243581,-400.0,0.00025444,2]
[383646658,1757062243590,-280.87506025,0.00025444,2]
[383646659,1757062243600,-400.0,0.00025444,2]
[383646660,1757062243609,-400.0,0.00025444,2]
[383646661,1757062243619,-400.0,0.00025444,2]
[383646662,1757062243629,-414.8,0.00025444,2]
[383646663,1757062243638,-400.0,0.00025444,2]
[383646664,1757062243648,-316.8384646,0.00025444,2]
[383646665,1757062243657,-400.0,0.00025444,2]
[383646666,1757062243666,-400.0,0.00025444,2]
[383646667,1757062243675,-400.0,0.00025444,2]
[383646668,1757062243684,-644.1,0.00025444,2]
[383646669,1757062243693,-400.0,0.00025444,2]
[383646670,1757062243703,-400.0,0.00025444,2]
[383646671,1757062243712,-568.548,0.00025445,2]
[383646672,1757062243722,-601.639,0.00025445,2]
[383646673,1757062243731,-1577.0,0.00025445,2]
[383646674,1757062243741,-1303.545,0.00025445,2]
[383646675,1757062243751,-4163.0,0.00025445,2]
[383646676,1757062243761,-726.49,0.00025445,2]
[383646677,1757062243770,-4595.75168234,0.00025445,2]
[383646678,1757062243786,-2463.6476707,0.00025445,2]
[383646679,1757062243798,-347.1970862,0.00025445,2]
[383646680,1757062243809,-890.44847693,0.00025445,2]
[383646691,1757062246291,-387.63398005,0.00025444,2]
[383646701,1757062319391,172.62,0.00024678,120]
[383646710,1757062907219,150.0,0.00013699,2]
[383646711,1757062907250,5.22,0.00013699,2]
[383646712,1757062991640,1031.03,0.00030137,120]
[383646715,1757063104408,167.8899717,0.00030136,120]
[383646738,1757063432192,-198.0,0.00022,2]
[383646739,1757063432202,-197.62,0.00022741,2]
[383646740,1757063432211,-199.0,0.00023014,7]
[383646741,1757063432220,-224.87500048,0.00023399,2]
[383646742,1757063432231,-545.55385374,0.00023399,2]
[383646743,1757063432240,-181.44240448,0.000234,2]
[383646744,1757063432250,-155.22,0.00023973,2]
[383646745,1757063432259,-671.0,0.00023994,2]
[383646746,1757063432269,-896.0,0.00023995,2]
[383646747,1757063432279,-1175.0,0.00023995,2]
[383646748,1757063432289,-86.76054393,0.00023995,2]
[383646749,1757063432301,-1018.07211828,0.00023995,2]
[383646750,1757063432312,-465.53280615,0.00023995,2]
[383646751,1757063432323,-1134.57089288,0.00023995,2]
[383646752,1757063432409,-844.35788172,0.00023995,2]
[383646753,1757063432539,-2633.46675704,0.00023995,2]
[383646754,1757063432551,-12913.162,0.00023995,2]
[383646755,1757063432560,-666.0,0.00024045,3]
[383646756,1757063432569,-150.0,0.00024056,2]
[383646757,1757063432580,-1000.0,0.0002406,2]
[383646758,1757063432590,-250.0,0.00024072,2]
[383646759,1757063432600,-222.0,0.000241,2]
[383646760,1757063432610,-323.78,0.000241,2]
[383646761,1757063432620,-462.1926,0.00024102,2]
[383646762,1757063432630,-200.0,0.00024183,2]
[383646763,1757063432642,-756.81,0.00024202,2]
[383646764,1757063432652,-164.49962253,0.00024206,2]
[383646765,1757063432661,-467.93,0.00024207,2]
[383646766,1757063432671,-160.0,0.00024473,7]
[383646767,1757063432681,-197.62,0.0002455,2]
[383646768,1757063432691,-1249.79,0.00024593,2]
[383646769,1757063432702,-164.82,0.00024618,2]
[383646770,1757063432712,-177.61,0.00024678,2]
[383646771,1757063432722,-409.38,0.00024778,2]
[383646772,1757063432732,-1697.44,0.00024799,2]
[383646773,1757063432741,-160.0,0.00024883,2]
[383646774,1757063432751,-160.0,0.00024883,2]
[383646775,1757063432760,-212.63008182,0.00024883,2]
[383646776,1757063432770,-257.91778498,0.00024885,2]
[383646777,1757063432779,-514.736181,0.00024885,2]
[383646778,1757063432790,-160.0,0.00024885,2]
[383646779,1757063432799,-4035.82049687,0.000249,2]
[383646780,1757063432810,-157.0,0.00025,7]
[383646781,1757063432820,-371.75404196,0.00025058,2]
[383646782,1757063432830,-1602.35,0.00025084,2]
[383646783,1757063432840,-151.0,0.00025185,2]
[383646784,1757063432850,-782.26545783,0.00025196,2]
[383646785,1757063432860,-81149.23312235,0.000252,2]
[383646786,1757063432873,-9085.76687765,0.000252,2]
[383646787,1757063432882,-1768.34831917,0.00025219,2]
[383646788,1757063432893,-813.693,0.00025276,9]
[383646789,1757063432903,-150.33104838,0.00025276,9]
[383646790,1757063432912,-218.0,0.0002528,2]
[383646791,1757063432922,-316.0,0.000253,2]
[383646792,1757063432932,-323.78,0.00025305,2]
[383646793,1757063432941,-400.0,0.00025443,2]
[383646794,1757063432951,-400.0,0.00025443,2]
[383646795,1757063432960,-434.16941037,0.00025443,2]
[383646796,1757063432970,-397.46412392,0.00025443,2]
[383646797,1757063432979,-166.02865379,0.00025443,2]
[383646798,1757063432989,-181.40075744,0.00025443,2]
[383646799,1757063432998,-400.0,0.00025443,2]
[383646800,1757063433008,-406.99665488,0.00025443,2]
[383646801,1757063433018,-400.0,0.00025443,2]
[383646802,1757063433029,-400.0,0.00025443,2]
[383646803,1757063433039,-400.0,0.00025443,2]
[383646804,1757063433049,-400.0,0.00025443,2]
[383646805,1757063433060,-400.0,0.00025443,2]
[383646806,1757063433070,-269.68008942,0.00025443,2]
[383646807,1757063433080,-400.0,0.00025443,2]
[383646808,1757063433091,-899.5010152,0.00025444,2]
[383646809,1757063433104,-14564.4715281,0.00025444,2]
[383646810,1757063433118,-2554.5953538,0.00025444,2]
[383646811,1757063433128,-567.0,0.00025445,2]
[383646812,1757063433139,-1300.0,0.00025445,2]
[383646813,1757063433148,-570.71109,0.00025445,2]
[383646814,1757063433159,-161.50033241,0.0002545,2]
[383646815,1757063433168,-269.2919327,0.00025455,2]
[383646816,1757063433178,-1000.0,0.000255,2]
[383646817,1757063433187,-1540.0,0.000255,2]
[383646818,1757063433197,-796.68971712,0.00025501,2]
[383646822,1757063438068,-203.31028288,0.00025501,2]
[383646823,1757063438079,-152.0,0.00025505,3]
[383646824,1757063438089,-212.47275525,0.0002557,2]
[383646825,1757063438099,-124.25440135,0.000256,2]
[383646826,1757063438277,-875.74559865,0.000256,2]
[383646827,1757063438286,-400.0,0.00025601,2]
[383646828,1757063438295,-400.0,0.00025601,2]
[383646829,1757063438304,-400.0,0.00025601,2]
[383646830,1757063438314,-400.0,0.00025601,2]
[383646831,1757063438323,-400.0,0.00025601,2]
[383646832,1757063438333,-400.0,0.00025601,2]
[383646833,1757063438343,-443.25,0.00025601,2]
[383646834,1757063438353,-1000.98,0.00025601,2]
[383646835,1757063438363,-6904.2904038,0.00025606,2]
[383646898,1757063446134,-1175.0,0.00025186,2]
[383646900,1757063446144,-674.9714354,0.00025606,2]
[383646902,1757063446154,-1118.24371077,0.00025607,3]
[383646963,1757063487883,158.75,0.00012378,2]
[383646964,1757063561337,731.84,0.00030137,120]
[383646965,1757063581710,260.0,0.0003013,120]
[383646969,1757063826638,200.0,0.0003,120]
[383646970,1757063846126,155.23,0.00013699,2]
[383646974,1757064357912,1000.0,0.0003013,120]
[383646976,1757064361976,406.0,0.00019321,2]
[383646992,1757064632171,-323.67128492,0.0002085,2]
[383646994,1757064632187,-553.8845061,0.0002085,2]
[383646995,1757064632198,-878.13898598,0.00022,5]
[383646996,1757064632207,-300.0,0.00022097,2]
[383646997,1757064632217,-156.0,0.00022097,2]
[383646998,1757064632227,-1200.0,0.00022097,2]
[383646999,1757064632236,-1200.0,0.00022098,2]
[383647000,1757064632246,-151.0,0.00022099,2]
[383647001,1757064632256,-2004.384394,0.000221,2]
[383647002,1757064632266,-161.3,0.000221,2]
[383647003,1757064632275,-179.11,0.000221,2]
[383647004,1757064632285,-300.0,0.00022934,2]
[383647005,1757064632295,-250.0,0.00022934,2]
[383647006,1757064632304,-250.0,0.00022935,2]
[383647007,1757064632314,-195.0,0.00022935,2]
[383647008,1757064632323,-613.1083274,0.00023364,2]
[383647009,1757064632333,-154.42225011,0.00023622,4]
[383647010,1757064632342,-150.0,0.00023622,4]
[383647011,1757064632351,-154.8405616,0.00023622,4]
[383647012,1757064632360,-156.74717013,0.00023622,4]
[383647013,1757064632369,-150.0,0.00023622,4]
[383647014,1757064632378,-154.24106201,0.00023622,4]
[383647015,1757064632387,-133.16400201,0.00023622,4]
[383647016,1757064632399,-122.24580183,0.00023622,4]
[383647017,1757064632408,-893.22,0.00023993,2]
[383647018,1757064632417,-360.69178905,0.00023999,2]
[383647019,1757064632427,-157.438593,0.00023999,2]
[383647020,1757064632435,-5000.00027105,0.00024,5]
[383647021,1757064632444,-161.3,0.00024,2]
[383647022,1757064632454,-179.11,0.00024,2]
[383647023,1757064632463,-165.99354507,0.0002401,2]
[383647024,1757064632478,-254.00645493,0.0002401,2]
[383647025,1757064632488,-524.53567075,0.00024113,2]
[383647026,1757064632498,-2486.15568312,0.00024113,2]
[383647027,1757064632507,-171.69,0.00024116,2]
[383647028,1757064632516,-1395.71574783,0.00024122,2]
[383647029,1757064632531,-284.28425217,0.00024122,2]
[383647030,1757064632540,-666.0,0.00024193,3]
[383647031,1757064632550,-588.68,0.00024204,2]
[383647032,1757064632559,-371.0,0.00024212,2]
[383647033,1757064632568,-500.0,0.00024219,2]
[383647034,1757064632577,-257.91778498,0.00024264,2]
[383647035,1757064632587,-1293.86,0.00024281,2]
[383647036,1757064632596,-160.0,0.00024301,7]
[383647037,1757064632605,-177.61,0.00024619,2]
[383647038,1757064632614,-371.0,0.00024784,2]
[383647040,1757064632624,-371.0,0.00024819,2]
[383647042,1757064632633,-600.86143897,0.0002488,7]
[383647044,1757064632644,-553.69985721,0.0002488,7]
[383647046,1757064632655,-151.0,0.00024885,2]
[383647048,1757064632664,-214.0,0.000249,2]
[383647050,1757064632673,-851.30014279,0.000249,2]
[383647052,1757064632684,-3321.78771968,0.000249,2]
[383647054,1757064632693,-142.24383239,0.00024901,2]
[383647056,1757064632704,-306.1056573,0.00024901,2]
[383647059,1757064632716,-66.38669131,0.00024901,2]
[383647061,1757064632725,-155.23,0.00024907,2]
[383647063,1757064632735,-168.0,0.00024948,2]
[383647065,1757064632744,-156.0,0.00025,7]
[383647067,1757064632754,-168.0,0.00025145,2]
[383647069,1757064632763,-371.0,0.00025156,2]
[383647071,1757064632772,-160.0,0.00025182,2]
[383647073,1757064632781,-1541.0,0.000252,2]
[383647075,1757064632790,-589.44943972,0.00025219,2]
[383647077,1757064632800,-747.18716897,0.000253,2]
[383647079,1757064632811,-486.87103,0.000253,2]
[383647081,1757064632823,-186.36038906,0.000253,2]
[383647083,1757064632832,-284.4,0.000253,2]
[383647085,1757064632841,-168.0,0.00025325,2]
[383647087,1757064632850,-296.30613985,0.0002535,9]
[383647089,1757064632862,-370.63653507,0.0002535,9]
[383647092,1757064632873,-174.77832508,0.0002535,9]
[383647094,1757064632883,-164.747,0.0002535,9]
[383647096,1757064632892,-475.59258,0.0002535,2]
[383647098,1757064632902,-151.0,0.00025433,2]
[383647100,1757064632911,-900.0,0.00025456,9]
[383647102,1757064632920,-900.0,0.00025456,9]
[383647104,1757064632930,-900.0,0.00025456,9]
[383647106,1757064632939,-900.0,0.00025456,9]
[383647108,1757064632948,-900.0,0.00025456,9]
[383647110,1757064632957,-166.67275381,0.00025456,9]
[383647112,1757064632968,-733.32724619,0.00025456,9]
[383647114,1757064632977,-900.0,0.00025456,9]
[383647116,1757064632986,-924.61102977,0.00025456,9]
[383647118,1757064632995,-900.0,0.00025477,9]
[383647120,1757064633005,-900.0,0.00025477,9]
[383647122,1757064633014,-900.0,0.00025477,9]
[383647124,1757064633024,-900.0,0.00025477,9]
[383647126,1757064633034,-900.0,0.00025477,9]
[383647128,1757064633043,-900.0,0.00025477,9]
[383647129,1757064633052,-900.0,0.00025477,9]
[383647131,1757064633062,-375.90320868,0.00025477,9]
[383647133,1757064633071,-2500.0,0.00025517,2]
[383647135,1757064633081,-2750.74812251,0.00025588,2]
[383647137,1757064633090,-4458.05924469,0.00025589,2]
[383647140,1757064633106,-584.52007842,0.00025589,2]
[383647142,1757064633116,-874.89552684,0.00025604,2]
[383647144,1757064633127,-764.82602997,0.00025604,2]
[383647146,1757064633138,-1537.47542561,0.00025604,2]
[383647149,1757064633149,-1000.0,0.00025604,2]
[383647151,1757064633160,-3908.14430452,0.00025604,2]
[383647153,1757064633172,-7035.13306578,0.00025604,2]
[383647155,1757064633185,-7812.14946139,0.00025604,2]
[383647157,1757064633197,-999.71745748,0.00025604,2]
[383647184,1757064638180,-367.84875133,0.00020848,2]
[383647185,1757064638190,-500.0,0.00020848,2]
[383647186,1757064638200,-500.0,0.00020848,2]
[383647187,1757064638210,-200.75712407,0.00020848,2]
[383647188,1757064638220,-250.0,0.00025114,2]
[383647189,1757064638231,-2283.72971953,0.00025182,2]
[383647190,1757064638241,-212.63008182,0.00025182,2]
[383647191,1757064638250,-7285.42769388,0.00025604,2]
[383647192,1757064638262,-260.0,0.00025604,2]
[383647193,1757064638274,-51400.24413453,0.00025604,2]
[383647194,1757064638283,-4859.75586547,0.00025613,2]
[383647195,1757064638295,-1961.57978981,0.00025613,2]
[383647196,1757064638304,-168.0,0.00025614,7]
[383647197,1757064638314,-177.13494864,0.00025614,2]
[383647198,1757064638325,-2256.0276,0.00025615,2]
[383647199,1757064638335,-400.0,0.00025616,2]
[383647200,1757064638345,-400.0,0.00025616,2]
[383647201,1757064638354,-508.54,0.00025616,2]
[383647202,1757064638364,-400.0,0.00025616,2]
[383647203,1757064638374,-425.35,0.00025616,2]
[383647204,1757064638383,-400.0,0.00025616,2]
[383647205,1757064638392,-400.0,0.00025616,2]
[383647206,1757064638402,-474.5,0.00025616,2]
[383647207,1757064638411,-400.0,0.00025616,2]
[383647208,1757064638427,-400.0,0.00025616,2]
[383647209,1757064638436,-400.0,0.00025616,2]
[383647210,1757064638445,-400.0,0.00025616,2]
[383647211,1757064638454,-400.0,0.00025616,2]
[383647212,1757064638464,-400.0,0.00025616,2]
[383647213,1757064638473,-424.78,0.00025616,2]
[383647214,1757064638482,-959.27,0.00025616,2]
[383647215,1757064638491,-217.17336665,0.00025616,2]
[383647216,1757064638500,-400.0,0.00025616,2]
[383647217,1757064638509,-521.25,0.00025616,2]
[383647218,1757064638518,-3010.69135387,0.00025617,3]
[383647219,1757064638527,-267.46074303,0.00025633,2]
[383647220,1757064638536,-164.19,0.0002569,2]
[383647221,1757064638556,-174.98,0.00025693,2]
[383647222,1757064638565,-565.3,0.00025694,2]
[383647224,1757064638574,-153.798817,0.00025703,2]
[383647226,1757064638583,-905.17,0.00025703,2]
[383647228,1757064638592,-554.4,0.00025703,2]
[383647230,1757064638601,-400.0,0.00025703,2]
[383647232,1757064638610,-400.0,0.00025703,2]
[383647234,1757064638620,-400.0,0.00025703,2]
[383647236,1757064638629,-400.0,0.00025703,2]
[383647238,1757064638638,-471.74661008,0.00025703,2]
[383647240,1757064638647,-400.0,0.00025703,2]
[383647242,1757064638656,-400.0,0.00025703,2]
[383647244,1757064638665,-400.0,0.00025703,2]
[383647246,1757064638674,-497.95444045,0.00025703,2]
[383647248,1757064638683,-424.32,0.00025703,2]
[383647250,1757064638692,-400.0,0.00025703,2]
[383647252,1757064638701,-2284.02,0.00025703,2]
[383647253,1757064638710,-400.0,0.00025703,2]
[383647255,1757064638718,-400.0,0.00025703,2]
[383647257,1757064638727,-400.0,0.00025703,2]
[383647259,1757064638736,-400.0,0.00025703,2]
[383647261,1757064638745,-400.0,0.00025703,2]
[383647263,1757064638754,-298.16494036,0.00025703,2]
[383647265,1757064638763,-42655.72222753,0.00025703,3]
[383647267,1757064638772,-212.63008182,0.00025704,3]
[383647269,1757064638781,-25551.36787045,0.00025704,3]
[383647272,1757064638793,-356.46668476,0.00025704,3]
[383647274,1757064638808,-959.8615566,0.00025704,3]
[383647276,1757064638819,-1519.1193888,0.00025704,3]
[383647279,1757064638829,-554.67338177,0.00025704,3]
[383647281,1757064638840,-1848.59751859,0.00025704,3]
[383647283,1757064638851,-389.2,0.00025704,3]
[383647285,1757064638865,-1100.09813727,0.00025704,3]
[383647288,1757064638876,-9325.41609884,0.00025704,3]
[383647384,1757064643307,-400.0,0.00025703,2]
[383647385,1757064643317,-2930.91111726,0.00025704,3]
[383647386,1757064643470,-589.61433889,0.00025704,3]
[383647462,1757064646313,-896.0,0.00025249,2]
[383647463,1757064646322,-466.51184395,0.00025704,3]
[383647464,1757064646333,-18566.3886742,0.00025704,3]
[383647465,1757064646421,-7018.53512722,0.00025704,3]
[383647600,1757064659305,157.87,0.00012451,2]
[383647601,1757064659505,157.87,0.00018676,2]
[383647602,1757064716563,207.16047494,0.000301,120]
[383647603,1757064732091,155.25,0.00013699,2]
[383647606,1757065734879,159.25,0.00012122,2]
[383647607,1757065763817,155.29,0.00013699,2]
[383647615,1757065831408,-397.2825,0.000219,2]
[383647616,1757065831419,-43.0225,0.00022,2]
[383647617,1757065831471,-127.9775,0.00022,2]
[383647618,1757065831480,-153.39,0.000221,2]
[383647619,1757065831490,-167.78356955,0.00023014,7]
[383647620,1757065831503,-3.21643045,0.00023014,7]
[383647621,1757065831512,-375.0,0.00023205,2]
[383647622,1757065831521,-1200.0,0.0002335,2]
[383647623,1757065831532,-150.0,0.00023351,4]
[383647624,1757065831542,-241.65839454,0.00023351,4]
[383647625,1757065831551,-150.0,0.00023351,4]
[383647626,1757065831561,-150.0,0.00023351,4]
[383647627,1757065831571,-150.0,0.00023351,4]
[383647628,1757065831582,-150.0,0.00023351,4]
[383647629,1757065831592,-150.0,0.00023351,4]
[383647630,1757065831602,-1334.0,0.000235,5]
[383647631,1757065831612,-300.0,0.00023699,2]
[383647632,1757065831625,-234.0,0.000238,2]
[383647633,1757065831635,-153.39,0.00024,2]
[383647634,1757065831645,-779.94,0.00024226,2]
[383647635,1757065831656,-159.25,0.00024244,2]
[383647636,1757065831666,-161.02,0.00024251,2]
[383647637,1757065831676,-1440.09,0.00024277,2]
[383647638,1757065831686,-160.0,0.00024323,7]
[383647639,1757065831696,-250.0,0.00024326,2]
[383647640,1757065831706,-666.0,0.00024406,3]
[383647641,1757065831715,-234.48,0.00024474,2]
[383647642,1757065831725,-200.0,0.00024678,2]
[383647643,1757065831734,-257.91778498,0.00024885,2]
[383647644,1757065831743,-4475.2302939,0.00024885,2]
[383647645,1757065831754,-151.0,0.00024885,2]
[383647646,1757065831766,-448.27574205,0.00024899,2]
[383647647,1757065831776,-4029.34543408,0.000249,2]
[383647648,1757065831786,-212.63008182,0.00024902,2]
[383647649,1757065831796,-230.0,0.0002498,2]
[383647650,1757065831807,-156.0,0.00025,7]
[383647651,1757065831815,-151.0,0.00025034,2]
[383647652,1757065831824,-936.43,0.00025065,2]
[383647653,1757065831834,-854.80176529,0.00025109,2]
[383647654,1757065831844,-832.16127657,0.00025182,2]
[383647655,1757065831853,-896.0,0.00025249,2]
[383647656,1757065831863,-188.92,0.00025249,2]
[383647657,1757065831872,-255.96,0.000253,2]
[383647658,1757065831881,-168.0,0.00025357,7]
[383647660,1757065831891,-832.16127657,0.00025417,2]
[383647662,1757065831900,-588.04088454,0.00025455,2]
[383647664,1757065831912,-1091.95911546,0.00025455,2]
[383647665,1757065831921,-151.0,0.00025582,2]
[383647666,1757065831930,-1607.55105454,0.00025601,2]
[383647667,1757065831941,-794.76384075,0.00025601,2]
[383647668,1757065831952,-754.96334709,0.00025601,2]
[383647669,1757065831963,-1334.0,0.00025601,2]
[383647670,1757065831974,-483.56965093,0.00025601,2]
[383647671,1757065831983,-695.16034907,0.00025601,2]
[383647672,1757065831994,-368.07577376,0.00025601,2]
[383647673,1757065832006,-5103.70503314,0.00025601,2]
[383647674,1757065832015,-159.42145374,0.00025602,2]
[383647675,1757065832024,-673.377,0.00025603,10]
[383647676,1757065832034,-164.74706412,0.00025603,10]
[383647677,1757065832044,-164.16,0.00025657,2]
[383647678,1757065832053,-43556.758344,0.00025692,3]
[383647679,1757065832451,-306.82569415,0.00025692,3]
[383647681,1757065837430,-900.44860161,0.00025249,2]
[383647682,1757065837483,-274.55139839,0.00025249,2]
[383647683,1757065837493,-348.21498223,0.00025601,2]
[383647684,1757065837504,-51.12470188,0.00025601,2]
[383647685,1757065837514,-12890.63881995,0.00025692,3]
[383647686,1757065837523,-5972.53954934,0.00025693,3]
[383647687,1757065837535,-3437.12096818,0.00025693,3]
[383647688,1757065837551,-1380.0,0.00025693,3]
[383647689,1757065837562,-1629.59740337,0.00025693,3]
[383647690,1757065837574,-6498.81636511,0.00025693,3]
[383647691,1757065837583,-4364.18363489,0.00025694,3]
[383647692,1757065837594,-917.24403709,0.00025694,3]
[383647693,1757065837605,-375.11531255,0.00025694,3]
[383647706,1757065839584,-13261.53130147,0.00025694,3]
[383647707,1757065839593,-151.0,0.00025694,7]
[383647708,1757065839602,-151.0,0.00025694,7]
[383647709,1757065839611,-151.0,0.00025694,7]
[383647710,1757065839620,-151.0,0.00025694,7]
[383647711,1757065839630,-3122.6658852,0.00025696,2]
[383647712,1757065839640,-234.48,0.00025697,2]
[383647713,1757065839651,-600.0,0.000257,9]
[383647714,1757065839661,-155.942,0.000257,2]
[383647715,1757065839670,-400.0,0.000257,2]
[383647716,1757065839680,-400.0,0.000257,2]
[383647717,1757065839689,-400.0,0.000257,2]
[383647718,1757065839699,-400.0,0.000257,2]
[383647719,1757065839708,-400.0,0.000257,2]
[383647720,1757065839719,-251.21362736,0.000257,2]
[383647721,1757065839732,-148.78637264,0.000257,2]
[383647722,1757065839743,-528.71,0.000257,2]
[383647723,1757065839754,-174.34263536,0.000257,2]
[383647733,1757065842876,-225.65736464,0.000257,2]
[383647734,1757065842886,-370.72416692,0.000257,2]
[383647743,1757065845572,-31.35830286,0.000257,2]
[383647744,1757065845582,-296.79793714,0.000257,2]
[383647745,1757065845624,-103.20206286,0.000257,2]
[383647746,1757065845633,-400.0,0.000257,2]
[383647747,1757065845643,-436.15699385,0.000257,2]
[383647748,1757065845662,-400.0,0.000257,2]
[383647749,1757065845672,-400.0,0.000257,2]
[383647750,1757065845682,-160.60456375,0.000257,2]
[383647751,1757065845781,-239.39543625,0.000257,2]
[383647752,1757065845791,-400.0,0.000257,2]
[383647753,1757065845801,-216.0055457,0.000257,2]
[383648677,1757066873584,155.36,0.00013699,2]
[383648682,1757067031605,-172.0,0.00022,2]
[383648683,1757067031615,-2609.23230439,0.00023152,2]
[383648684,1757067031625,-150.0,0.00023252,4]
[383648685,1757067031635,-550.916,0.00024187,2]
[383648686,1757067031645,-547.32904755,0.00024187,2]
[383648687,1757067031927,-627.67095245,0.00024187,2]
[383648688,1757067031937,-200.0,0.00024248,2]
[383648689,1757067031946,-218.6,0.00024281,2]
[383648690,1757067031956,-968.89,0.00024369,2]
[383648691,1757067031965,-372.26934452,0.00024412,2]
[383648692,1757067031977,-827.73065548,0.00024412,2]
[383648694,1757067031986,-26.26649827,0.00024413,2]
[383648697,1757067032006,-477.93930329,0.00024413,2]
[383648699,1757067032017,-295.60861375,0.00024413,2]
[383648701,1757067032028,-3840.35558469,0.00024413,2]
[383648703,1757067032038,-250.0,0.00024418,2]
[383648705,1757067032047,-300.0,0.00024499,2]
[383648707,1757067032057,-336.23,0.000245,2]
[383648709,1757067032066,-313.79301943,0.000245,2]
[383648711,1757067032076,-450.4,0.00024501,2]
[383648712,1757067032086,-4509.22139588,0.00024501,2]
[383648715,1757067032096,-299.99,0.00024501,2]
[383648719,1757067032108,-569.02182676,0.00024501,2]
[383648721,1757067032119,-900.0,0.00024501,2]
[383648723,1757067032130,-832.88090177,0.00024501,2]
[383648725,1757067032142,-456.7858882,0.00024501,2]
[383648727,1757067032153,-8964.91998739,0.00024501,2]
[383648729,1757067032163,-175.86,0.00024546,2]
[383648731,1757067032172,-230.507816,0.0002455,2]
[383648733,1757067032182,-224.0,0.000246,2]
[383648735,1757067032192,-666.0,0.0002461,3]
[383648737,1757067032201,-200.0,0.00024631,2]
[383648739,1757067032211,-257.91778498,0.00024885,2]
[383648740,1757067032220,-4214.25123569,0.000249,2]
[383648741,1757067032230,-2000.0,0.00024993,3]
[383648742,1757067032239,-2000.0,0.00024993,3]
[383648743,1757067032249,-2000.0,0.00024993,3]
[383648744,1757067032259,-259.358,0.00024993,3]
[383648745,1757067032269,-156.0,0.00025,7]
[383648746,1757067032280,-151.0,0.00025233,2]
[383648747,1757067032289,-152.0,0.0002527,3]
[383648748,1757067032298,-230.36,0.000253,2]
[383648749,1757067032308,-538.701,0.00025434,10]
[383648750,1757067032319,-860.5340259,0.0002546,2]
[383648751,1757067032330,-4477.36310397,0.00025591,2]
[383648752,1757067032339,-349.42222357,0.00025591,2]
[383648753,1757067032350,-5550.24704031,0.00025592,2]
[383648754,1757067032360,-159.42145374,0.00025592,2]